Cogmind - Beta 9.6 *** ADVENTURER MODE // 2020.09.13 @ 19:20:21 Player: Maelrawn Result: Self-destructed Performance ------------- Evolutions (1) 500 Regions Visited (3) 600 Robots Destroyed (20) 100 Value Destroyed (508) 508 Prototype IDs (0) 0 Alien Tech Used (0) 0 Bonus (200) 200 TOTAL SCORE: 1908 Bonus ------- Pacifist 200 Cogmind --------- Core Integrity 204/400 Matter 300/300 Energy 100/100 System Corruption 0% Temperature Cool (0) Movement Core (100) Ox1 Location -9/Mines Parts ------- > --- POWER (2) -------- (None) > --- PROPULSION (3) --- (None) > --- UTILITY (2) ------ Small Storage Unit Improved Targeting Computer > --- WEAPON (2) ------- (None) > --- INVENTORY (6) ---- Ion Engine Large Battery (300) Improved Targeting Computer Small Laser Peak State ------------ > --- POWER ------------ Light Ion Engine Light Nuclear Core > --- PROPULSION ------- Wheel Wheel Wheel > --- UTILITY ---------- Small Storage Unit Shield Generator > --- WEAPON ----------- EM Pulse Gun Grenade Launcher > --- INVENTORY -------- Ion Engine Light Ion Engine Large Battery Improved Targeting Computer Improved Targeting Computer Small Laser [Rating: 12] Favorites ----------- Power Light Ion Engine Engine Light Ion Engine Power Core Light Nuclear Core Propulsion Wheel Wheel Wheel Utility Small Storage Unit Device Shield Generator Storage Small Storage Unit Processor Improved Targeting Computer Weapon EM Pulse Gun Energy Gun EM Pulse Gun Launcher Grenade Launcher Build | -11 -10 -9 -9 ------- Run | Scr Mat Mat Min Slots Evolved 2 | . . 2 . Power 1 | . . 1 . Propulsion 1 | . . 1 . Utility . | . . . . Weapon . | . . . . Parts Attached 19 | 6 3 6 4 Power 7 | 1 1 3 2 Engine 6 | 1 1 3 1 Core 1 | . . . 1 Reactor . | . . . . Propulsion 3 | 2 . 1 . Treads . | . . . . Leg . | . . . . Wheel 3 | 2 . 1 . Hover . | . . . . Flight . | . . . . Utility 4 | 1 1 1 1 Device 1 | . . 1 . Storage 2 | 1 1 . . Processor 1 | . . . 1 Hackware . | . . . . Protection . | . . . . Artifact . | . . . . Weapon 5 | 2 1 1 1 Energy Gun 4 | 2 . 1 1 Energy Cannon . | . . . . Ballistic Gun . | . . . . Ballistic Cannon . | . . . . Launcher 1 | . 1 . . Special Weapon . | . . . . Impact Weapon . | . . . . Slashing Weapon . | . . . . Piercing Weapon . | . . . . Special Melee Weapon . | . . . . Unidentified Prototypes . | . . . . Parts Lost 10 | . . . 10 Power 3 | . . . 3 Propulsion 3 | . . . 3 Utility 1 | . . . 1 Weapon 3 | . . . 3 Highest Loss Streak 7 | . . . 7 Average Slot Usage (%) 89 | . 92 98 80 Engine 16 | . 14 21 14 Wheel 28 | . 28 32 25 Device 6 | . . 8 9 Storage 14 | . 22 12 11 Energy Gun 14 | . 23 11 11 Launcher 6 | . 4 11 5 Naked Turns . | . . . . Heaviest Build 20 | 12 17 20 19 Greatest Support 30 | 20 20 30 30 Greatest Overweight (x) 1 | . . . 1 Average Overweight (x) . | . . . . Largest Inventory Capacity 6 | 6 6 6 6 Average Capacity 5 | 5 6 6 6 Most Carried 6 | 4 6 6 6 Average Carried 4 | 1 4 5 5 Final Capacity 6 | 6 6 6 6 Final Carried 6 | 2 6 5 4 Class Distribution -------------------- 100% | Mutant Dominant Class ---------------- Mutant | -10/Materials Mutant | -9/Materials Mutant | -9/Mines Resources | -11 -10 -9 -9 ----------- Run | Scr Mat Mat Min Matter Collected 574 | 168 92 22 292 Remotely . | . . . . Salvage Created 314 | . . 67 247 Parts 27 | . . 9 18 Haulers Intercepted . | . . . . Recyclers Shooed . | . . . . Parts Field Recycled . | . . . . Retrieved Matter . | . . . . Parts Self-Destructed . | . . . . Prevented . | . . . . Kills | -11 -10 -9 -9 ------- Run | Scr Mat Mat Min Combat Hostiles Destroyed 19 | . . 7 12 Guns 6 | . . 1 5 AOE 13 | . . 6 7 Classes Destroyed 4 | . . 4 . Builder 1 | . . 1 . Swarmer 10 | . . 4 6 Grunt 8 | . . 2 6 Sentry 1 | . . 1 . Best Kill Streak 6 | . . 4 6 Combat Bots Only 6 | . . 4 6 Max Kills in Single Turn 2 | . . 2 2 Gunslinging . | . . . . Exploded 2 | . . 2 2 Melee . | . . . . Uniques/NPCs Destroyed . | . . . . Combat | -11 -10 -9 -9 -------- Run | Scr Mat Mat Min Damage Taken 612 | . . 183 429 Core 196 | . . 38 158 Absorbed by Shields 134 | . . 73 61 Core Remaining (%) 100 | 100 100 . . Volleys Fired 47 | . . 21 26 Largest 2 | . . 1 2 Hottest 85 | . . 40 85 Shots Fired 49 | . . 21 28 Gun 28 | . . 6 22 Cannon . | . . . . Launcher 21 | . . 15 6 Special . | . . . . Kinetic . | . . . . Thermal . | . . . . Explosive 21 | . . 15 6 Electromagnetic 28 | . . 6 22 Robot Hit Streak 14 | . . 7 14 Robot Miss Streak 3 | . . 1 3 Penetration Max . | . . . . Secondary Targets 1 | . . . 1 Max Gunslinging Chain 1 | . . . 1 Shots Hit Robots 30 | . . 10 20 Core Hits 31 | . . 10 21 Critical Hits . | . . . . Critical Kills . | . . . . Critical Parts Destroyed . | . . . . Melee Attacks . | . . . . Impact . | . . . . Slashing . | . . . . Piercing . | . . . . Sneak Attacks . | . . . . Combat Hostiles . | . . . . Follow-up Attacks . | . . . . Damage Inflicted 1239 | . . 648 591 Guns 244 | . . 34 210 Cannons . | . . . . Explosions 995 | . . 614 381 Melee . | . . . . Ramming . | . . . . Kinetic . | . . . . Thermal . | . . . . Explosive 995 | . . 614 381 Electromagnetic 244 | . . 34 210 Impact . | . . . . Slashing . | . . . . Piercing . | . . . . Highest Corruption . | . . . . Average Corruption . | . . . . Corruption Purged . | . . . . Overload Shots . | . . . . Overflow Damage . | . . . . Projectiles . | . . . . Explosions . | . . . . Melee . | . . . . Knockbacks . | . . . . Impact . | . . . . Kinetic . | . . . . Secondary . | . . . . Self-Inflicted Damage 81 | . . 44 37 Shots 6 | . . 4 2 Rammed . | . . . . Targets Rammed . | . . . . Kicked . | . . . . Crushed . | . . . . Highest Temperature 32 | . . 12 32 Average Temperature 13 | . . 4 19 Received Heat Transfer 100 | . . 48 52 Siege Activations . | . . . . Robots Corrupted . | . . . . Combat Hostiles . | . . . . Parts Fried 1 | . . . 1 Impact Corruptions . | . . . . Robots Melted . | . . . . Combat Hostiles . | . . . . Parts Melted . | . . . . Heat Transferred . | . . . . Parts Sabotaged . | . . . . Parts Stolen . | . . . . Parts Stripped . | . . . . Power Chain Reactions . | . . . . Missiles Intercepted . | . . . . Alert | -11 -10 -9 -9 ------- Run | Scr Mat Mat Min Peak Influence 370 | . 15 264 370 Average Influence 133 | . . 131 236 Maximum Alert Level 1 | . . 1 1 Low Security (%) 66 | 100 100 69 37 Level 1 33 | . . 30 62 Level 2 . | . . . . Level 3 . | . . . . Level 4 . | . . . . Level 5 . | . . . . High Security . | . . . . Max Security . | . . . . Squads Dispatched 1 | . . 1 . Investigation . | . . . . Extermination . | . . . . Reinforcement 1 | . . 1 . Assault . | . . . . Garrison . | . . . . Intercept . | . . . . Construction Impeded 1 | . . 1 . Haulers Reinforced . | . . . . Stealth | -11 -10 -9 -9 --------- Run | Scr Mat Mat Min Distress Signals 1 | . . 1 . Communications Jammed . | . . . . Distress Signals . | . . . . Times Spotted 32 | . 1 13 18 Peak Tracking Total 5 | . 1 5 5 Tactical Retreats 3 | . . 1 2 Traps | -11 -10 -9 -9 ------- Run | Scr Mat Mat Min Traps Triggered . | . . . . Indirectly . | . . . . Trap Hack Attempts . | . . . . Triggered . | . . . . Disarmed . | . . . . Reprogrammed . | . . . . Reused . | . . . . Traps Extracted . | . . . . Installed . | . . . . Triggered . | . . . . Machines | -11 -10 -9 -9 ---------- Run | Scr Mat Mat Min Machines Disabled 6 | . . 1 5 Max in Single Turn 2 | . . 1 2 Machines Sabotaged . | . . . . Garrisons Compromised . | . . . . Overloaded Fab Kills . | . . . . Fab Network Shutdowns . | . . . . Hacking | -11 -10 -9 -9 --------- Run | Scr Mat Mat Min Machines Accessed 2 | . 1 . 1 Terminals 2 | . 1 . 1 Fabricators . | . . . . Repair Stations . | . . . . Recycling Units . | . . . . Scanalyzers . | . . . . Garrison Access . | . . . . Total Hacks 4 | . 3 . 1 Successful 2 | . 1 . 1 Failed 2 | . 2 . . Catastrophic . | . . . . Database Lockouts . | . . . . Manual . | . . . . Terminals 4 | . 3 . 1 Fabricators . | . . . . Repair Stations . | . . . . Recycling Units . | . . . . Scanalyzers . | . . . . Garrison Access . | . . . . Terminal Hacks 2 | . 1 . 1 Zone Layout 2 | . 1 . 1 Fabricator Hacks . | . . . . Repair Station Hacks . | . . . . Recycling Unit Hacks . | . . . . Scanalyzer . | . . . . Garrison Access Hacks . | . . . . Unauthorized Hacks . | . . . . Terminals . | . . . . Fabricators . | . . . . Repair Stations . | . . . . Recycling Units . | . . . . Scanalyzers . | . . . . Garrison Access . | . . . . Data Cores Recovered . | . . . . Used . | . . . . Hacking Detections . | . . . . Full Trace Events . | . . . . Feedback Events . | . . . . Feedback Blocked . | . . . . Robot Schematics Acquired . | . . . . Robots Built . | . . . . Matter . | . . . . Time . | . . . . Total Robot Build Rating . | . . . . Part Schematics Acquired . | . . . . Parts Built . | . . . . Matter . | . . . . Time . | . . . . Total Part Build Rating . | . . . . Parts Repaired . | . . . . Time . | . . . . Parts Recycled . | . . . . Recycled Matter . | . . . . Retrieved Matter . | . . . . Retrieved Components . | . . . . Parts Scanalyzed . | . . . . Part Schematics Acquired . | . . . . Parts Damaged . | . . . . Bothacking | -11 -10 -9 -9 ------------ Run | Scr Mat Mat Min Used RIF Installer . | . . . . Robots Hacked . | . . . . Non-combat . | . . . . Combat . | . . . . Robot Hacks Applied . | . . . . Relay Couplers Released . | . . . . Robots Rewired . | . . . . Allies Hacked . | . . . . Hacks Repelled . | . . . . Allies | -11 -10 -9 -9 -------- Run | Scr Mat Mat Min Total Allies . | . . . . Largest Group . | . . . . Highest-Rated Group . | . . . . Highest-Rated Ally . | . . . . Total Orders . | . . . . Ally Attacks . | . . . . Total Damage . | . . . . Kills . | . . . . Allies Corrupted . | . . . . Allies Melted . | . . . . Intel | -11 -10 -9 -9 ------- Run | Scr Mat Mat Min Robot Analysis Total . | . . . . Derelict Logs Recovered . | . . . . Drone Launches . | . . . . Drone Recoveries . | . . . . Exploration | -11 -10 -9 -9 ------------- Run | Scr Mat Mat Min Turns Passed 689 | 46 167 199 277 Spaces Moved 687 | 48 199 181 259 Core 19 | 16 . . 3 Treads . | . . . . Legs . | . . . . Wheels 668 | 32 199 181 256 Hover . | . . . . Flight . | . . . . Fastest Speed 50 | 50 80 80 80 Average Speed 79 | 70 80 80 80 Slowest Speed 100 | 80 80 80 100 Overloaded Moves . | . . . . Propulsion Burnouts . | . . . . Robots Hopped . | . . . . Cave-ins Triggered . | . . . . Exploration Rate (%) 34 | 3 36 31 69 Regions Visited 3 Branch Regions 1 Pre-discovered Areas . | . . . . Known Exits Taken . | . . . . Unknown Exits Taken 3 | 1 1 1 . Scrap Searched 2 | . . . 2 Spaces Dug . | . . . . Terrain Destroyed 96 | . . 60 36 Melee . | . . . . Projectile . | . . . . AOE 96 | . . 60 36 Actions | -11 -10 -9 -9 --------- Run | Scr Mat Mat Min Total 778 | 59 206 214 299 Wait 9 | . . . 9 Move 684 | 47 198 180 259 Hop . | . . . . Pick Up 12 | 6 3 3 . Fast Attach 9 | 2 3 2 2 Attach 10 | 4 . 4 2 Detach 2 | . 1 . 1 Swap . | . . . . Drop 5 | . 1 4 . Fire 47 | . . 21 26 Melee . | . . . . Ram . | . . . . Kick . | . . . . Crush . | . . . . Escape Stasis . | . . . . Rewire . | . . . . Trap . | . . . . Miscellaneous . | . . . . Route ------- -11/Scrapyard -10/Materials -9/Materials -9/Mines (discovered 1 exit: [*Mat]) History --------- Turn | Location | Event 4 | -11/Scrapyard | Discovered new exit (range 16) 47 | -11/Scrapyard | Entered Materials 109 | -10/Materials | Discovered new exit (range 17) 214 | -10/Materials | Entered another Materials area 214 | -9/Materials | Evolved 2 slots: Power x1, Propulsion x1 319 | -9/Materials | Build established: Mutant 393 | -9/Materials | Discovered new exit (range 8) 413 | -9/Materials | Entered Mines 583 | -9/Mines | Lost 3 parts (1p1n1w) 635 | -9/Mines | Assembled infested the area 650 | -9/Mines | Discovered new exit (range 8) 690 | -9/Mines | Self-destructed Last Messages --------------- 00644_ D-53 Grenadier unfolds itself. 00645_ Acquired Hvy. EM Pulse Gun. 00646_ S-10 Pest destroyed. 00646_ Switching to secondary target: D-53 Grenadier. 00649_ S-10 Pest destroyed. 00650_ EXIT=FOUND 00652_ Shield Generator destroyed. 00652_ EM Pulse Gun destroyed. 00654_ Wheel destroyed. 00664_ S-10 Pest destroyed. 00674_ Acquired 19 matter. 00675_ Lgt. Ion Engine destroyed. 00675_ T-07 Excavator destroyed. 00677_ The unstable cave ceiling collapses. 00684_ S-10 Pest destroyed. 00685_ Wheel destroyed. 00685_ Hvy. EM Pulse Gun destroyed. 00685_ Lgt. Ion Engine destroyed. 00686_ as-15784 destroyed. 00689_ The unstable cave ceiling collapses. Map ----- +----------------------------------------------------+ | ??????######## #???????????????????## #????? | | ?????## ##??## #??????????????????## ##???? | | ???### #???# #??????????????????# ##??? | | ?### ##??# #?????????????###### #??? | | ## #### #????????????## ## #??? | | = ## ##????????#### ## #??? | | =### #####????# #### #??? | | #?# """ ## ###### #??# #??? | | = ### """ ## ##?## ##??? | | # """ ## #### #??####???? | | ## ### ##########??## #?????????? | | ### ## ##?# #????????????# ##????????? | | ######### #### #????????????# ###??????? | | ##T####### ### #????????????## ##?????? | | #?## #?????????????## ######? | | "" """ #??# ##?????????????## ## | | "" """ #??# ### #??????????????### """ # | | "" """ #??## #?## ##???????????????## """ | | #???####??## ###?????????????## """ | | "" """ #??????????## ##?########??# | | "" """ #???????????# ## # ## | | "" """ #??????????## # # ### | | #??####???## ##??? | | ########?## ##??# = d= [ ##???? | | ?????????# #??# * #????? | | #####????# #??# @ #!= #????? | | #????# #### ##????? | | ###?## ## # ####?????? | | #?# # d* ###????????? | | #?# ## #??????????? | | = ### #### ######### # ?????????? | | ## ##??# #???????###%## ???????? | | ## #???#! #????????? " ? < ??????? | | ### ##???#!!#?????????####? #?????? | | " #?## #####????# #?????????????? #?????? | | " ###### ###??????# #???????????????#####?????? | | #??????# #?????????????????????????? | | ####### ###????# #?????????????????????????? | | #####?????# ##???# #?????????????????????????? | | ??????????# #???# #?????????????????????????? | | ??????????## #???# #?????????????????????????? | | ?????####?## ##??## #?????????????????????????? | | ????## ### ##### ##????????????????????????? | | ????# #????????????????????????? | | ???## ???????????????????? | | ??## ## #### #??????????????????? | | ?## #### ##??# ##### #??????????????????? | | ?# ##??####???### ###????? #??????????????????? | | ?# #????????????####???????????????????????????? | | ?## #???????????????????????????????????????????? | +----------------------------------------------------+ Best States ------------- Heat Dissipation 28 Energy Generation 19 Energy Capacity 575 Matter Stores 300 Matter Capacity 300 Sight Range 16 Terrain Scan Density 10 Resistance: KI 20 Resistance: TH 20 Resistance: EX 20 Resistance: EM 20 Resistance: I 20 Resistance: S 20 Resistance: P 20 Evasion (%) 50 Targeting Accuracy 6 Offensive Hacking 10 Item Schematics ----------------- None Robot Schematics ------------------ None Fabricated ------------ Nothing Alien Tech Used ----------------- None Achievements -------------- None Challenges ------------ None Game ------ Seed NovaControlSuite Manual? 0 Play Time 00:17:01 Cumulative 8.9 hours Start 2020.09.13 @ 00:43:40 End 2020.09.13 @ 19:20:21 Sessions 3 Manual Loads 0 Difficulty Adventurer Special Mode None Game No. 21 Rogue 15 Adventurer 6 Explorer 0 Win Type - Total 0 Types 0/0/0/0/0/0/0 Lore% 5 Gallery% 21 Achievement% 14 Wizard Run 0 Options --------- ASCII 0 Keyboard 1 Movement Numpad Keybinds 0 Fullscreen 2 Font 18/TerminusBold Map View 76x50 Tactical HUD 1 Map Filters NONE Filters NONE Steam 1 RUN: bd24e49c-2fba-40b3-8bc5-3273b2547000